Cogmind - Beta 17 @@@ ROGUE MODE // 2026.07.29 @ 11:32:40 Player: 4R-ZE3 Result: Destroyed by FX-VT6(R) with Subdweller Machine Gun Performance ------------- Evolutions (0) 0 Regions Visited (2) 400 Robots Destroyed (26) 130 Value Destroyed (476) 476 Prototype IDs (0) 0 Alien Tech Used (0) 0 Bonus (0) 0 TOTAL SCORE: 1006 Bonus ------- None Cogmind --------- Core Integrity 0/250 Matter 270/300 Energy 248/250 System Corruption 0% Temperature Cool (0) Movement Treading (240) Ox1 Location -10/Subcaves Parts ------- > --- POWER (1) -------- Ion Engine > --- PROPULSION (2) --- Light Treads Light Treads > --- UTILITY (2) ------ High-capacity Storage Unit Subdweller Optics > --- WEAPON (2) ------- Light Assault Rifle Light Assault Rifle > --- INVENTORY (20) --- Light Ion Engine Light Ion Engine Light Treads Light Treads Light Treads Light Treads Subdweller Monowheel Scrap Shield Hacking Suite Makeshift Hacking Suite Light Assault Rifle Light Assault Rifle Light Assault Rifle Hammer Hammer Peak State ------------ > --- POWER ------------ Ion Engine > --- PROPULSION ------- Light Treads Light Treads > --- UTILITY ---------- High-capacity Storage Unit Subdweller Optics > --- WEAPON ----------- Light Assault Rifle Light Assault Rifle > --- INVENTORY -------- Light Ion Engine Light Ion Engine Light Treads Light Treads Light Treads Light Treads Subdweller Monowheel Scrap Shield Hacking Suite Light Assault Rifle Light Assault Rifle Light Assault Rifle Hammer Hammer [Rating: 10] Favorites ----------- Power Light Ion Engine Engine Light Ion Engine Propulsion Light Treads Treads Light Treads Utility High-capacity Storage Unit Device Subdweller Optics Storage High-capacity Storage Unit Weapon Light Assault Rifle Energy Gun Medium Laser Ballistic Gun Light Assault Rifle Impact Weapon Hammer Build | -11 -10 -10 ------- Run | Yrd Mat Sub Slots Evolved . | . . . Power . | . . . Propulsion . | . . . Utility . | . . . Weapon . | . . . Parts Attached 20 | 6 7 7 Power 3 | 1 1 1 Engine 3 | 1 1 1 Core . | . . . Reactor . | . . . Propulsion 6 | 2 . 4 Treads 6 | 2 . 4 Leg . | . . . Wheel . | . . . Hover . | . . . Flight . | . . . Utility 5 | 1 2 2 Device 2 | . . 2 Storage 3 | 1 2 . Processor . | . . . Hackware . | . . . Protection . | . . . Artifact . | . . . Weapon 6 | 2 4 . Energy Gun 1 | 1 . . Energy Cannon . | . . . Ballistic Gun 4 | 1 3 . Ballistic Cannon . | . . . Launcher . | . . . Special Weapon . | . . . Impact Weapon 1 | . 1 . Slashing Weapon . | . . . Piercing Weapon . | . . . Special Melee Weapon . | . . . Unidentified Prototypes . | . . . Parts Lost 9 | . 3 6 Power 2 | . 1 1 Propulsion 4 | . . 4 Utility 1 | . . 1 Weapon 2 | . 2 . Highest Loss Streak 3 | . 3 3 To Critical Strikes 2 | . . 2 Average Backups 14 | 1 14 15 Power 2 | . 2 2 Propulsion 6 | . 6 6 Utility 1 | . 1 1 Weapon 3 | . 3 5 Tool/Special . | . . . Unused Backups 13 | . . 13 Power 2 | . . 2 Propulsion 5 | . . 5 Utility 3 | . . 3 Weapon 3 | . . 3 Tool/Special . | . . . Average Slot Usage (%) 87 | . 84 98 Engine 13 | . 13 13 Treads 27 | . 28 27 Device 2 | . . 13 Storage 14 | . 14 14 Energy Gun 3 | . 4 . Ballistic Gun 22 | . 23 19 Impact Weapon 2 | . . 8 Peak Build Rating 10 | 6 9 10 Average Rating 7 | 5 7 8 On Entrance 4 | . 6 8 Avg Prop Armor Cover (%) . | . . . Naked Turns . | . . . Heaviest Build 54 | 14 54 50 Greatest Support 40 | 40 40 40 Greatest Overweight (x) 2 | . 2 1 Average Overweight (x) . | . . 1 Largest Inventory Capacity 20 | 8 20 20 Average Capacity 19 | 7 19 20 Most Carried 18 | 2 18 18 Average Carried 14 | 1 14 16 Final Capacity 20 | 8 20 20 Final Carried 18 | 2 18 16 Class Distribution -------------------- 94% | Mutant 5% | Scavenger-Mutant Dominant Class ---------------- Mutant | -10/Materials Mutant | -10/Subcaves Resources | -11 -10 -10 ----------- Run | Yrd Mat Sub Matter Collected 660 | 287 228 145 Remotely . | . . . Salvage Created 853 | 191 393 269 Parts 58 | 16 29 13 Haulers Intercepted 2 | . 2 . Recyclers Shooed 2 | . 2 . Parts Field Recycled . | . . . Retrieved Matter . | . . . Parts Self-Destructed 4 | . . 4 Prevented . | . . . Parts Restored . | . . . Kills | -11 -10 -10 ------- Run | Yrd Mat Sub Combat Hostiles Destroyed 17 | . 12 5 Guns 17 | . 12 5 Classes Destroyed 7 | 2 4 1 Tunneler 5 | 5 . . Hauler 2 | . 2 . Recycler 1 | 1 . . Operator 1 | . 1 . Swarmer 9 | . 9 . Grunt 3 | . 3 . Subdweller 5 | . . 5 Best Kill Streak 5 | 5 3 2 Combat Bots Only 3 | . 3 2 Max Kills in Single Turn 2 | 1 2 1 Gunslinging . | . . . Exploded . | . . . Melee . | . . . Uniques/NPCs Destroyed . | . . . Combat | -11 -10 -10 -------- Run | Yrd Mat Sub Hostile Shots Fired 131 | . 78 53 Missed 30 | . 20 10 Hits 101 | . 58 43 Projectile 101 | . 58 43 Critical Strikes 3 | . 1 2 Damage Taken 1397 | . 533 864 Core 253 | . 94 159 Absorbed by Shields . | . . . Core Remaining (%) 100 | 100 . . Volleys Fired 99 | 9 56 34 Largest 2 | 2 2 2 Hottest 70 | 70 70 40 Shots Fired 198 | 18 112 68 Gun 198 | 18 112 68 Cannon . | . . . Launcher . | . . . Special . | . . . Kinetic 148 | 9 71 68 Thermal 50 | 9 41 . Explosive . | . . . Electromagnetic . | . . . Robot Hit Streak 23 | 5 7 23 Robot Miss Streak 7 | 1 7 2 Penetration Max . | . . . Secondary Targets 2 | . 1 1 Max Gunslinging Chain 1 | . 1 1 Shots Hit Robots 126 | 12 57 57 Core Hits 54 | 7 26 21 Critical Kills . | . . . Critical Parts Destroyed . | . . . Critical Strikes 5 | 1 4 . Burn 5 | 1 4 . Melee Attacks 16 | . 6 10 Impact 16 | . 6 10 Slashing . | . . . Piercing . | . . . Sneak Attacks . | . . . Combat Hostiles . | . . . Follow-up Attacks . | . . . Damage Inflicted 1301 | 143 710 448 Guns 1296 | 143 705 448 Cannons . | . . . Explosions . | . . . Melee . | . . . Ramming 5 | . 5 . Kinetic 910 | 81 381 448 Thermal 386 | 62 324 . Explosive . | . . . Electromagnetic . | . . . Impact . | . . . Slashing . | . . . Piercing . | . . . Highest Corruption . | . . . Average Corruption . | . . . Corruption Purged . | . . . Corruption Blocked . | . . . Overload Shots . | . . . Overflow Damage . | . . . Projectiles . | . . . Explosions . | . . . Melee . | . . . Knockbacks . | . . . Impact . | . . . Kinetic . | . . . Secondary . | . . . Self-Inflicted Damage . | . . . Shots . | . . . Rammed 1 | . 1 . Targets Rammed 1 | . 1 . Kicked . | . . . Crushed . | . . . Highest Temperature 198 | 36 198 . Average Temperature 39 | 13 44 . Received Heat Transfer 195 | . 123 72 Siege Activations . | . . . Martial Activations . | . . . Shielding Activations . | . . . Robots Disrupted . | . . . Combat Hostiles . | . . . Robots Corrupted . | . . . Combat Hostiles . | . . . Parts Fried . | . . . Impact Corruptions . | . . . Robots Melted . | . . . Combat Hostiles . | . . . Parts Melted 3 | 1 2 . Heat Transferred 1480 | 259 1221 . Parts Sabotaged . | . . . Parts Stolen . | . . . Parts Stripped . | . . . Power Chain Reactions . | . . . Alert | -11 -10 -10 ------- Run | Yrd Mat Sub Maximum Alert Level . | . . . Low Security (%) 100 | 100 100 . Level 1 . | . . . Level 2 . | . . . Level 3 . | . . . Level 4 . | . . . Level 5 . | . . . High Security . | . . . Max Security . | . . . Peak Influence 120 | 10 120 . Initial . | . . . Average 19 | 2 20 . Influence Increases 422 | 30 392 . Destroy 0b10 Robot/C 240 | . 240 . Destroy 0b10 Robot/NC 45 | 30 15 . Destroy Leader 54 | . 54 . Successful Hack 35 | . 35 . Disable Machine 15 | . 15 . Destroy Structure 3 | . 3 . Lose Combat Pursuer 30 | . 30 . Influence Decreases 422 | 30 392 . Time Decay 392 | 30 362 . Lost Part 30 | . 30 . Squads Dispatched 1 | . 1 . Investigation . | . . . Extermination . | . . . Reinforcement 1 | . 1 . Assault . | . . . Garrison . | . . . Intercept . | . . . Searches Triggered . | . . . Construction Impeded . | . . . Haulers Reinforced . | . . . Active Scanning Responses . | . . . Cargo Convoy Interrupts . | . . . Stealth | -11 -10 -10 --------- Run | Yrd Mat Sub Distress Signals . | . . . Communications Jammed . | . . . Distress Signals . | . . . Times Spotted 39 | . 33 6 Peak Tracking Total 6 | . 6 2 Tactical Retreats 1 | . 1 . Traps | -11 -10 -10 ------- Run | Yrd Mat Sub Traps Triggered 1 | . 1 . Indirectly . | . . . Trap Hack Attempts . | . . . Triggered . | . . . Disarmed . | . . . Reprogrammed . | . . . Reused . | . . . Traps Extracted . | . . . Installed . | . . . Triggered . | . . . Machines | -11 -10 -10 ---------- Run | Yrd Mat Sub Machines Disabled 1 | . 1 . Max in Single Turn 1 | . 1 . Machines Repaired . | . . . Machines Dismantled . | . . . Machines Sabotaged . | . . . Overloaded Fab Kills . | . . . Hacking | -11 -10 -10 --------- Run | Yrd Mat Sub Machines Accessed 9 | . 9 . Terminals 7 | . 7 . Fabricators . | . . . Repair Stations . | . . . Recycling Units 2 | . 2 . Scanalyzers . | . . . Garrison Access . | . . . Total Hacks 19 | . 19 . Successful 11 | . 11 . Failed 8 | . 8 . Catastrophic 1 | . 1 . Database Lockouts . | . . . Manual 9 | . 9 . Terminals 17 | . 17 . Fabricators . | . . . Repair Stations . | . . . Recycling Units 2 | . 2 . Scanalyzers . | . . . Garrison Access . | . . . Terminal Hacks 6 | . 6 . Robot Analysis 2 | . 2 . Alert Level 1 | . 1 . Hauler Manifests 1 | . 1 . Zone Layout 2 | . 2 . Fabricator Hacks . | . . . Repair Station Hacks . | . . . Recycling Unit Hacks 2 | . 2 . Retrieve Components 2 | . 2 . Scanalyzer . | . . . Garrison Access Hacks . | . . . Unauthorized Hacks 3 | . 3 . Terminals 3 | . 3 . Botnet 3 | . 3 . Fabricators . | . . . Repair Stations . | . . . Recycling Units . | . . . Scanalyzers . | . . . Garrison Access . | . . . Data Cores Recovered . | . . . Used . | . . . Hacking Detections 6 | . 6 . Full Trace Events . | . . . Feedback Events . | . . . Feedback Blocked . | . . . Robot Schematics Acquired . | . . . Robots Built . | . . . Authchips . | . . . Time . | . . . Total Robot Build Rating . | . . . Part Schematics Acquired . | . . . Parts Built . | . . . Authchips . | . . . Time . | . . . Total Part Build Rating . | . . . Part Studies Acquired . | . . . Parts Repaired . | . . . Time . | . . . Parts Recycled . | . . . Recycled Matter . | . . . Retrieved Matter . | . . . Retrieved Components 11 | . 11 . Parts Scanalyzed . | . . . Part Schematics Acquired . | . . . Parts Damaged . | . . . Bothacking | -11 -10 -10 ------------ Run | Yrd Mat Sub Used RIF Installer . | . . . Robots Hacked . | . . . Non-combat . | . . . Combat . | . . . Robot Hacks Applied . | . . . Relay Couplers Released . | . . . Fabnet Peak Effective % . | . . . Robots Rewired . | . . . Allies Hacked . | . . . Hacks Repelled . | . . . Allies | -11 -10 -10 -------- Run | Yrd Mat Sub Total Allies . | . . . Largest Group . | . . . Highest-Rated Group . | . . . Highest-Rated Ally . | . . . Total Orders . | . . . Ally Attacks . | . . . Total Damage . | . . . Kills . | . . . Allies Corrupted . | . . . Allies Melted . | . . . Intel | -11 -10 -10 ------- Run | Yrd Mat Sub Active Infowar (turns) 644 | . . 644 Optics 389 | . . 389 Seismic 255 | . . 255 Robot Analysis Total 2 | . 2 . Derelict Logs Recovered 1 | . . 1 Drone Launches . | . . . Drone Recoveries . | . . . Exploration | -11 -10 -10 ------------- Run | Yrd Mat Sub Turns Passed 3147 | 151 2329 667 Spaces Moved 1073 | 74 778 221 Core 4 | 4 . . Treads 1069 | 70 778 221 Legs . | . . . Wheels . | . . . Hover . | . . . Flight . | . . . Fastest Speed 50 | 50 160 240 Average Speed 233 | 154 239 240 Slowest Speed 320 | 160 320 240 Overloaded Moves . | . . . Propulsion Burnouts . | . . . Robots Hopped . | . . . Potential Cave-ins . | . . . Cave-ins Triggered . | . . . Exploration Rate (%) 40 | 3 96 23 Regions Visited 2 Branch Regions 1 Pre-discovered Areas . | . . . Known Exits Taken . | . . . Unknown Exits Taken 2 | 1 1 . Scrap Searched 3 | . . 3 Spaces Dug 1 | . . 1 Terrain Destroyed 1 | . . 1 Melee 1 | . . 1 Projectile . | . . . AOE . | . . . Terrain Rammed . | . . . Walls Destroyed . | . . . Machines Disabled . | . . . Actions | -11 -10 -10 --------- Run | Yrd Mat Sub Total 1498 | 90 1123 285 Wait 259 | . 254 5 Move 1071 | 73 777 221 Hop . | . . . Pick Up 22 | 2 17 3 Fast Attach 13 | 6 6 1 Attach 8 | . 2 6 Detach . | . . . Swap 7 | . 2 5 Drop 2 | . 2 . Fire 99 | 9 56 34 Melee 16 | . 6 10 Ram . | . . . Kick . | . . . Crush 1 | . 1 . Escape Stasis . | . . . Rewire . | . . . Trap . | . . . Miscellaneous . | . . . Route ------- -11/Scrapyard -10/Materials (discovered 5 exits: [*Mat x3] / [*Min] / [*Sub]) -10/Subcaves (discovered 1 exit: [*Mat]) History --------- Turn | Location | Event 2 | -11/Scrapyard | Met Revision 17 8 | -11/Scrapyard | Discovered new exit (range 13) 152 | -11/Scrapyard | Entered Materials 314 | -10/Materials | Build established: Mutant 531 | -10/Materials | Discovered new exit (range 11) 857 | -10/Materials | Lost 3 parts (1p2w) 946 | -10/Materials | Discovered new exit (range 15) 1248 | -10/Materials | Discovered new exit (range 16) 2167 | -10/Materials | Discovered new exit (range 15) 2476 | -10/Materials | Discovered new exit (range 3) 2481 | -10/Materials | Entered Subcaves 2481 | -10/Subcaves | Learned Materials interactive machine intel 2482 | -10/Subcaves | Approached by a straggling Scientist 2734 | -10/Subcaves | Discovered new exit (range 15) 2743 | -10/Subcaves | Core integrity fell below 50% 2899 | -10/Subcaves | Lost 3 parts (1p2n) 2999 | -10/Subcaves | Disturbed a concealed Subdweller 3017 | -10/Subcaves | Core integrity fell below 20% 3148 | -10/Subcaves | Destroyed by FX-VT6(R) with Subdweller Machine Gun Last Messages --------------- 02988_ Found Sub. Beam Cannon. 02988_ Found 30 Matter. 02989_ Acquired 4 matter. 02990_ Searching scrap... 02990_ Found Mak. Hacking Suite. 02990_ Found Barrage Gun. 02990_ Found 65 Matter. 02993_ Searching scrap... 02993_ Found Mak. Thermal Plating. 02993_ Found 30 Matter. 02999_ F3-O55(R) angrily emerges from the Twisted Machinery. 03001_ Acquired 10 matter. 03002_ Acquired 2 matter. 03017_ F3-O55(R) destroyed. 03019_ Acquired Mak. Hacking Suite. 03023_ Acquired 6 matter. 03035_ Subatomizers dissect the Sub. Machine Gun. 03043_ B6-8BF(u) tweaks Twisted Machinery. Map ----- +----------------------------------------------------+ | ?????????????????????????????????????????????????? | | ?????????????????????????????????????????????????? | | ?????????????????????????????????????????????????? | | ?????????????????????????????????????????????????? | | ?????????????????????????????????????????????????? | | ?????????????????????????????????????????????????? | | ?????????????????????????????????????????????????? | | ?????????????????????????????????????????????????? | | ?????????????????????????????????????????????????? | | ?????????????????????????????????????????????????? | | ?????????????????????????????????????????????????? | | ?????????????????????????##??????????????????????? | | ?????????????????????????#"??????????????????????? | | ??????????????????????????"??????????????????????? | | ??????????????????????????"??????????????????????? | | ??????????????????????????"####??????????????????? | | ??????????????????????????" #???????????????#### | | ??????????????????????????? "??????????????##| " | | ??????????????????????????? ???????????????#"%#] | | ??????????????????????????? ???????????????#%[#% | | ??????????????????????????? #???????????????#!"#[ | | ??????????????????????????## #????????##?????#%### | | ??????????????????????????# ##??????##"##?####### | | ??????????????????????????# #??????#"""### | | ?????? ??????? ?????????### ######???# # ""#"# | | ???? ??????? ????????#@R #"" ##???# #"""### | | ???? #?????? ???????# # ##"" ##### """"" " | | ????? ????? ????????#### ## """" "" "" | | ????? ???? ???#?????##### "" "" "" | | ?????? ???? #??# ?????# " """ """ | | ?????? ^ ???# #?? ##???# # "" "" | | ?????## ^??? ??? ##??## #### ###"" """## | | ?????# ??# ??? #???###???# ##?#" "" ##? | | ?????# ## ????# #?????### #??#""" ##?? # | | ????## ????# #????? ### #??#" ###?### | | ????# ???### #???? ### ##?##"" #### | | ?????# ???# #?????? ######??# " | | ?????# #????# ######## ## ###### " | | ?????# #??### ## ## "" ## " ## | | ?????## #### " #### | | #### ##??? | | #??# ###???? | | #???# #?????? | | ### #???## ##??### | | #### ##### ##### ## ##?# # | | #?# #???# ## !### | | ??## % | | # ???## #### !% !%! | | # ???# #??#### [ | | # #????## ##?????####### | +----------------------------------------------------+ Best States ------------- Heat Dissipation 25 Energy Generation 10 Energy Capacity 250 Matter Stores 300 Matter Capacity 300 Sight Range 21 Terrain Scan Density 10 Evasion (%) 40 Recoil Reduction 2 Item Schematics ----------------- None Robot Schematics ------------------ None Fabricated ------------ Nothing Repaired ---------- Nothing Studied --------- None Alien Tech Used ----------------- None Achievements -------------- None Challenges ------------ None Game ------ Seed FortressMicroHammer Manual? 0 Play Time 00:15:56 Cumulative 125.8 hours Start 2026.07.29 @ 11:19:56 End 2026.07.29 @ 11:32:40 Sessions 1 Manual Loads 0 Difficulty Rogue Special Mode None Game No. 140 Rogue 86 Adventurer 54 Explorer 0 Win Type - Total 3 Types 2/0/0/1/0/0/0/0/0/0 Lore% 53 Gallery% 51 Achievement% 46 Wizard Run 0 Options --------- Layout 1 ASCII 0 Keyboard 0 Movement Mouse Keybinds 1 Fullscreen 1 Font 32/Tamsyn Map View 50x35 Zoom Use 0% Tactical HUD 1 Map Filters NONE Filters NONE Steam 1 RUN: f9548387-5bee-4b8b-b861-d3cc9a1b4212